bitfinex/quotes_ETHUSD_20241225
["timestamp","ask_amount","ask_price","bid_price","bid_amount"]
[1735097059861,0.7591,3471.0,3470.2,0.7783]
[1735097060060,0.7591,3471.0,3470.3,2.88157]
[1735097060265,0.7591,3471.0,3470.3,3.247557]
[1735097060580,0.7591,3471.4,3470.7,2.88126]
[1735097060776,0.7591,3471.4,3470.3,0.365987]
[1735097060961,2.88027,3471.9,3470.3,0.365987]
[1735097061126,2.88027,3471.9,3470.8,2.88111]
[1735097061326,3.244207,3471.9,3470.8,2.88111]
[1735097062563,0.55,3471.8,3470.9,2.88108]
[1735097062886,0.7591,3472.0,3471.0,0.7939]
[1735097063048,3.0,3472.3,3471.2,2.88083]
[1735097063250,4.22894213,3472.4,3471.2,2.88083]
[1735097063251,0.57884213,3472.4,3472.1,2.88009]
[1735097063486,0.7702,3472.8,3472.1,2.88009]
[1735097064551,0.7702,3472.8,3472.2,2.88]
[1735097065721,0.7702,3473.1,3471.9,0.7939]
[1735097065919,2.05376319,3474.7,3471.9,0.7939]
[1735097065920,0.7702,3474.3,3472.3,3.34804908]
[1735097066065,0.7702,3473.8,3472.3,3.34804908]
[1735097066268,0.7702,3473.8,3472.7,2.87959]
[1735097066614,0.7702,3473.8,3472.7,3.34804908]
[1735097066615,0.364885,3473.7,3472.7,3.34804908]
[1735097066769,0.7702,3473.8,3472.7,3.34804908]
[1735097067118,0.7702,3473.8,3473.1,2.87923]
[1735097068618,0.7702,3473.8,3472.8,2.87952]
[1735097069369,0.7702,3474.7,3472.9,0.7939]
[1735097069618,3.0,3474.3,3473.1,2.87921]
[1735097069769,0.587821,3474.2,3473.3,2.8791]
[1735097070781,3.0,3474.5,3473.3,2.8791]
[1735097071001,3.0,3474.5,3473.4,2.87899]
[1735097071385,0.55,3474.4,3473.4,2.87899]
[1735097071783,0.55,3474.4,3472.9,0.7939]
[1735097071984,0.7702,3474.7,3473.1,3.34804908]
[1735097072201,0.364802,3474.6,3473.8,2.87869]
[1735097072519,0.364802,3474.6,3474.0,2.8785]
[1735097072711,0.7702,3474.7,3474.0,2.8785]
[1735097073081,0.7702,3474.7,3474.1,2.87841]
[1735097073283,0.7702,3474.7,3474.1,2.8784]
[1735097074216,0.7702,3474.7,3473.8,2.87861]
[1735097074529,0.55,3474.6,3473.6,3.67275]
[1735097074678,0.55,3474.6,3473.7,2.87876]
[1735097074872,0.419798,3474.6,3474.0,2.87852]
[1735097075201,0.7702,3474.7,3474.0,2.87852]
[1735097075402,0.7702,3474.7,3474.1,2.87843]
[1735097076071,0.7702,3474.7,3473.7,2.87872]
[1735097076272,0.7702,3474.7,3474.0,2.87852]
[1735097076889,0.7702,3474.7,3474.1,2.87841]
[1735097077453,0.7702,3474.7,3474.2,2.87831]
[1735097077907,0.7702,3474.7,3473.6,0.7939]
[1735097078244,0.55,3475.2,3474.3,2.87826]
[1735097078759,0.7754,3475.3,3474.0,0.02878084]
[1735097078897,0.7754,3475.3,3474.6,2.878]
[1735097079438,0.76952272,3475.3,3474.3,4.13164908]
[1735097079651,0.76952272,3475.3,3474.7,2.8779]
[1735097080013,0.76952272,3475.3,3474.8,2.87781]
[1735097080529,0.76952272,3475.3,3474.3,4.13164908]
[1735097080735,4.07452622,3476.1,3474.5,2.87811]
[1735097080932,4.07452622,3476.1,3474.7,2.87794]
[1735097081180,2.87671,3476.2,3475.1,2.8776]
[1735097081340,1.19772622,3476.4,3475.2,2.87751]
[1735097081341,4.07426622,3476.4,3475.2,2.87751]
[1735097081536,1.19772622,3476.4,3475.4,2.87735]
[1735097081740,0.58779594,3476.3,3475.4,2.87735]
[1735097082303,0.58779594,3476.3,3475.0,0.7836]
[1735097082304,0.58779594,3476.3,3475.7,2.87708]
[1735097082634,2.01882622,3476.4,3476.0,2.87683]
[1735097082942,0.8211,3476.4,3475.8,2.87696]
[1735097083469,0.8211,3476.4,3475.8,2.87703]
[1735097084055,1.19772622,3477.1,3475.9,0.02876689]
[1735097084056,0.8211,3477.0,3475.9,0.02876689]
[1735097084260,0.8211,3476.4,3475.2,2.87748]
[1735097084570,0.8211,3476.4,3475.1,4.13164908]
[1735097084972,0.8211,3476.4,3475.6,2.87719]
[1735097085181,0.8211,3476.4,3475.7,2.87709]
[1735097086006,0.8211,3476.4,3476.0,2.87686]
[1735097086163,0.8211,3476.7,3476.0,0.287686]
[1735097086483,0.8211,3476.7,3476.2,2.87663]
[1735097087545,0.8211,3477.6,3476.5,2.87644]
[1735097088002,3.69664,3477.6,3476.5,2.87644]
[1735097088294,3.69664,3477.6,3476.1,2.8767]
[1735097088295,0.8211,3477.6,3476.1,2.8767]
[1735097088447,0.8211,3477.6,3476.3,6.22458908]
[1735097088643,0.8211,3477.6,3476.5,0.7836]
[1735097088844,0.8211,3477.6,3476.8,2.87616]
[1735097090089,0.55,3477.5,3476.5,0.7836]
[1735097090389,0.55,3477.5,3476.8,2.87618]
[1735097090901,0.8211,3477.6,3477.1,2.87595]
[1735097091191,0.8211,3477.6,3476.7,3.34804908]
[1735097091402,0.8211,3477.6,3476.8,0.41316491]
[1735097091948,0.8211,3477.6,3477.0,2.87599]
[1735097092144,0.8211,3477.6,3476.5,0.7836]
[1735097092349,2.87579,3477.3,3476.2,2.87665]
[1735097092578,2.87596,3477.1,3475.9,6.22492908]
[1735097092761,0.55,3476.9,3475.9,6.22492908]
[1735097093598,0.55,3476.7,3475.9,6.22492908]
[1735097094474,0.55,3476.7,3476.0,2.87682]
[1735097095081,0.55,3476.7,3476.1,2.87674]
[1735097095651,0.55,3476.7,3475.9,6.22497908]
[1735097095882,0.55,3476.7,3476.1,2.87677]
[1735097096974,0.8211,3476.8,3476.1,2.87677]
[1735097097176,0.8211,3476.8,3476.1,0.70084191]
[1735097097390,0.8211,3476.8,3476.2,2.87662]
[1735097097606,0.8211,3476.8,3476.4,2.8765]
[1735097098611,0.8211,3476.8,3476.1,0.70084191]
[1735097098767,0.8211,3476.8,3476.5,2.87644]
[1735097099420,0.8308,3477.5,3476.6,0.02876145]
[1735097099580,0.8308,3477.5,3476.9,2.87607]
[1735097100490,0.8308,3477.5,3476.7,2.87628]
[1735097100733,0.8308,3477.5,3476.8,2.87617]
[1735097101427,1.21388,3477.5,3476.9,2.87609]
[1735097101797,0.8308,3477.5,3476.9,2.87609]
[1735097102794,0.8308,3477.5,3477.0,2.87603]
[1735097103199,0.8308,3477.5,3476.8,2.87618]
[1735097103503,0.8308,3477.5,3476.9,2.87611]
[1735097104322,0.8308,3477.5,3477.0,2.87602]
[1735097104521,0.8308,3477.5,3476.8,5.6204343]
[1735097105550,1.201418,3477.5,3476.5,0.287644]
[1735097105831,1.201418,3477.5,3476.6,2.87636]
[1735097106330,1.201418,3477.5,3476.4,5.6207443]
[1735097106490,0.8308,3477.5,3476.4,5.6207443]
[1735097106694,0.8308,3477.5,3476.8,2.87615]
[1735097107121,0.8308,3477.5,3476.4,5.6207443]
[1735097107122,0.8308,3477.5,3476.9,2.8761]
[1735097109906,0.55,3477.4,3476.6,2.87632]
[1735097110461,0.975639,3477.4,3476.6,2.87632]
[1735097111019,0.975639,3477.4,3476.4,2.7442643]
[1735097111215,0.975639,3477.4,3471.6,18.85739754]
[1735097111216,0.7661,3476.7,3475.3,0.7644]
[1735097111455,0.55,3476.6,3475.3,3.5086643]
[1735097111633,0.55,3476.6,3475.7,2.87704]
[1735097111832,0.55,3476.6,3475.7,2.7442643]
[1735097112053,0.7661,3476.7,3476.6,2.87637]
[1735097112281,4.3161,3477.5,3476.6,2.87637]
[1735097112403,4.90519907,3477.5,3476.6,2.87637]
[1735097112617,4.90519907,3477.5,3476.1,5.6210143]
[1735097112618,1.3161,3477.5,3476.7,2.87624]
[1735097112820,2.51382622,3477.5,3476.7,2.87624]
[1735097113049,3.0,3477.4,3476.8,2.87616]
[1735097113323,3.0,3477.4,3476.5,2.7442643]
[1735097113518,3.0,3477.4,3476.7,2.87628]
[1735097114141,0.7661,3477.3,3476.1,2.7442643]
[1735097114323,0.55,3477.2,3476.4,2.87653]
[1735097114571,0.55,3477.2,3476.5,2.87645]
[1735097115379,0.98161,3477.2,3476.5,2.87645]
[1735097116580,0.7661,3476.9,3475.8,2.87703]
[1735097116859,0.55,3476.8,3475.8,2.87703]
[1735097117055,0.55,3476.8,3476.2,2.87669]
[1735097120660,0.55,3476.8,3476.3,2.87659]
[1735097123167,0.55,3476.8,3475.7,3.5086643]
[1735097123367,0.55,3476.8,3475.8,0.40878394]
[1735097123671,0.55,3476.8,3476.2,2.87668]
[1735097125474,0.7661,3476.9,3475.8,3.28576394]
[1735097125656,1.94892622,3477.2,3476.3,0.7724]
[1735097125837,1.94892622,3477.2,3477.0,2.87601]
[1735097126027,2.55496319,3477.2,3477.1,2.87595]
[1735097126225,1.80376319,3477.2,3477.1,2.87595]
[1735097126445,1.80376319,3477.2,3477.1,3.43797143]
[1735097127724,2.49011232,3477.6,3477.5,3.64802]
[1735097127989,1.05234232,3477.6,3477.5,6.3922843]
[1735097128139,2.32e-06,3477.6,3477.5,6.3922843]
[1735097128488,2.32e-06,3477.6,3477.5,9.3922843]
[1735097128691,1.20458948,3477.7,3477.6,6.64794]
[1735097128692,1.8e-06,3477.7,3477.6,6.64794]
[1735097128856,1.20464416,3478.3,3477.6,12.5924]
[1735097129054,1.20464416,3478.3,3478.2,2.87505]
[1735097129775,1.20464416,3478.3,3477.6,12.3366643]
[1735097129995,1.20464416,3478.3,3477.6,2.7442643]
[1735097130157,0.7512,3478.2,3477.2,3.5166643]
[1735097130369,0.7512,3478.2,3477.3,0.40786857]
[1735097130563,0.7512,3478.2,3477.4,2.8757]
[1735097130768,0.7512,3478.2,3477.5,1.19335504]
[1735097131146,0.7512,3478.2,3477.5,4.06896504]
[1735097131582,0.7512,3478.2,3477.6,2.87552]
[1735097132301,0.7512,3478.2,3477.4,2.87569]
[1735097132607,0.7512,3478.2,3477.5,2.87562]
[1735097134419,0.7512,3478.8,3478.0,2.8752]
[1735097134566,0.7512,3478.8,3477.8,2.8753]
[1735097135865,0.55,3478.7,3477.9,2.87529]
[1735097136394,0.55,3478.7,3477.6,2.7442643]
[1735097136718,0.55,3478.7,3477.8,2.87535]
[1735097137386,0.7512,3478.8,3478.1,2.87512]
[1735097140396,0.55,3478.7,3477.6,3.43968657]
[1735097140752,0.55,3478.5,3477.7,2.87544]
[1735097141318,0.7871,3478.4,3477.1,0.56202143]
[1735097141561,0.55,3478.1,3477.4,2.8757]
[1735097141860,0.7871,3478.0,3477.2,1.41532281]
[1735097142000,0.7871,3478.0,3477.3,2.87578]
[1735097142854,0.7871,3478.0,3477.2,1.41532281]
[1735097142855,0.55,3477.9,3477.2,1.41532281]
[1735097143205,0.55,3477.9,3477.3,3.36103842]
[1735097143755,0.55,3477.9,3477.4,2.8757]
[1735097144136,0.7871,3478.0,3477.3,0.48532842]
[1735097144340,0.7871,3478.0,3477.6,2.87546]
[1735097144656,0.7871,3478.0,3477.7,2.87543]
[1735097145655,0.7871,3478.0,3477.5,2.8756]
[1735097146454,0.55,3477.9,3477.3,2.87578]
[1735097146655,0.55,3477.9,3476.7,2.51100669]
[1735097146824,0.55,3477.9,3477.1,2.87595]
[1735097147509,0.55,3477.9,3477.2,2.87585]
[1735097148365,0.55,3477.9,3476.8,3.60435508]
[1735097148509,0.55,3477.9,3477.3,2.87578]
[1735097157189,1.0359,3478.0,3477.5,2.87562]
[1735097157539,1.0359,3478.0,3477.5,3.163182]
[1735097158389,1.0359,3478.0,3477.5,2.87562]
[1735097159286,1.0359,3478.0,3477.3,2.87576]
[1735097161447,1.0359,3478.0,3477.4,2.8757]
[1735097161672,1.0359,3478.0,3477.7,2.87542]
[1735097163295,1.0359,3478.0,3477.0,0.793]
[1735097163519,0.2488,3478.0,3477.9,2.87529]
[1735097166662,0.2488,3478.0,3477.4,3.8096]
[1735097166993,0.2488,3478.0,3477.9,2.87529]
[1735097167554,0.2488,3478.0,3477.9,3.68489]
[1735097168846,0.8078,3479.2,3478.8,2.87448]
[1735097169551,0.8078,3479.2,3478.9,2.87444]
[1735097169753,1.20187634,3479.3,3479.1,2.8743]
[1735097169996,2.00967634,3479.6,3479.1,2.8743]
[1735097170650,2.00967634,3479.6,3479.1,2.87425]
[1735097171000,2.00967634,3479.6,3479.5,2.87397]
[1735097171001,1.20187634,3479.6,3479.5,2.87397]
[1735097171497,2.00967634,3480.0,3479.6,2.87388]
[1735097172535,2.00967634,3480.0,3479.2,0.8096]
[1735097172841,0.8078,3480.0,3479.3,0.4537258]
[1735097173200,0.8078,3480.0,3479.6,2.87389]
[1735097173399,0.8078,3480.0,3479.3,0.48246119]
[1735097173594,0.8078,3480.3,3479.3,0.48246119]
[1735097173792,0.8078,3480.3,3479.8,2.87371]
[1735097174296,0.8078,3480.3,3479.4,2.87405]
[1735097174297,0.8078,3480.3,3479.9,2.87362]
[1735097174501,0.8078,3480.3,3480.0,2.87355]
[1735097174734,1.20187634,3480.5,3479.8,0.8096]
[1735097175100,1.20187634,3480.5,3479.8,3.83833068]
[1735097175298,1.20187634,3480.5,3479.9,0.9456485]
[1735097175547,0.8078,3480.9,3479.9,0.9456485]
[1735097175757,0.8078,3480.9,3479.9,3.8192885]
[1735097175930,0.8078,3480.9,3480.4,2.87322]
[1735097176247,1.20187634,3481.0,3480.6,2.87305]
[1735097176470,1.20187634,3481.0,3480.6,0.287305]
[1735097176818,1.20187634,3481.5,3480.9,2.87282]
[1735097177062,1.20187634,3481.5,3480.7,2.87297]
[1735097177352,1.20187634,3481.5,3480.8,2.87289]
[1735097177705,1.20187634,3481.5,3480.8,0.8096]
[1735097178032,1.20187634,3481.5,3481.4,2.8724]
[1735097178239,1.20187634,3481.5,3481.4,3.96924]
[1735097179046,0.1711806,3481.7,3481.4,3.96924]
[1735097179278,0.1711806,3481.7,3480.9,2.7442643]
[1735097179279,0.1711806,3481.7,3480.9,0.8228]
[1735097179461,0.1711806,3481.7,3480.9,3.69561]
[1735097180476,0.1711806,3481.7,3481.0,2.87273]
[1735097181579,0.1711806,3481.7,3481.6,2.87224]
[1735097181881,0.1711806,3481.7,3481.6,3.159464]
[1735097186255,0.1711806,3481.7,3481.5,0.8036]
[1735097186471,0.1711806,3481.7,3481.5,3.67588]
[1735097186856,0.1711806,3481.7,3481.6,2.87224]
[1735097191512,0.1711806,3481.7,3481.6,2.90095787]
[1735097191816,6e-07,3481.7,3481.6,3.70455787]
[1735097192007,6e-07,3481.7,3481.6,4.63668209]
[1735097192212,6e-07,3481.7,3481.6,16.42796422]
[1735097192905,6e-07,3482.4,3482.3,12.49526]
[1735097193065,6e-07,3482.4,3482.3,6.4195243]
[1735097193411,0.8228,3484.1,3483.3,2.87081]
[1735097193571,0.8228,3484.1,3482.3,6.38621673]
[1735097193572,0.8228,3484.1,3482.7,3.67487]
[1735097193761,0.8228,3484.1,3482.5,0.56236954]
[1735097193967,2.7442643,3484.2,3482.8,2.87125]
[1735097193968,0.8228,3483.9,3482.8,2.87125]
[1735097194397,0.8228,3483.8,3482.6,2.8714]
[1735097194560,2.87059,3483.7,3482.6,2.8714]
[1735097194760,1.3728,3483.5,3482.6,2.8714]
[1735097195663,1.3728,3483.5,3482.7,2.87133]
[1735097197793,1.3228,3483.5,3482.7,2.87133]
[1735097198160,0.7728,3483.5,3483.0,2.87106]
[1735097198416,0.7728,3483.5,3483.3,2.87083]
[1735097199710,0.7228,3483.5,3483.3,2.87083]
[1735097201014,0.7228,3483.5,3482.5,8.82]
[1735097201306,0.55,3483.4,3482.7,2.87132]
[1735097201614,0.55,3483.4,3482.8,2.87125]
[1735097201811,0.55,3483.4,3482.9,2.87115]
[1735097202010,0.55,3483.4,3482.7,2.87131]
[1735097202309,0.55,3483.4,3482.8,2.87117]
[1735097202620,0.7228,3483.5,3483.1,2.87099]
[1735097203483,0.7228,3483.5,3482.8,0.287117]
[1735097203683,0.7228,3483.5,3483.2,2.87091]
[1735097206124,0.7228,3483.5,3483.0,2.87107]
[1735097206307,0.7228,3483.5,3482.8,2.87123]
[1735097206472,0.55,3483.4,3482.8,2.87123]
[1735097206672,0.8301,3483.3,3482.6,2.87141]
[1735097206901,1.26811,3483.3,3482.6,2.87141]
[1735097207429,1.26811,3483.3,3482.4,0.57779476]
[1735097207601,1.26811,3483.3,3482.7,2.87131]
[1735097208787,0.55,3483.0,3482.2,2.87167]
[1735097209005,0.55,3482.8,3482.0,2.87188]
[1735097209173,0.55,3482.8,3481.7,0.7753]
[1735097209375,0.55,3482.8,3482.1,2.87178]
[1735097209595,0.55,3482.8,3482.2,2.87174]
[1735097209775,0.8301,3482.9,3482.4,2.87155]
[1735097210288,0.55,3482.8,3482.1,2.87181]
[1735097210482,0.8301,3482.9,3482.3,2.87164]
[1735097210682,1.3801,3483.5,3482.8,2.87124]
[1735097211306,1.3801,3483.5,3482.6,2.87139]
[1735097211507,0.55,3483.3,3482.6,2.87139]
[1735097212723,0.7743,3483.2,3482.6,2.87139]
[1735097213642,0.7743,3483.2,3482.8,2.87117]
[1735097213810,0.7743,3483.2,3482.7,0.287139]
[1735097213998,0.7743,3483.2,3482.3,2.87166]
[1735097214196,0.7743,3483.2,3482.1,4.067381]
[1735097214431,0.7743,3483.2,3482.8,2.87122]
[1735097215043,0.7743,3483.2,3482.1,4.067381]
[1735097215200,0.7743,3483.2,3482.9,2.87116]
[1735097215644,0.7743,3483.2,3482.7,2.87132]
[1735097216698,0.7743,3483.0,3481.8,8.82]
[1735097216900,0.55,3482.9,3481.9,1.61149194]
[1735097217245,0.55,3482.9,3482.4,2.87155]
[1735097218147,0.55,3482.9,3482.5,2.87148]
[1735097218328,0.55,3482.9,3482.1,2.87183]
[1735097218503,0.55,3482.9,3482.3,2.87163]
[1735097218704,0.55,3482.9,3481.9,2.87192]
[1735097218920,0.55,3482.9,3481.6,3.5147194]
[1735097218921,0.7743,3482.4,3481.6,2.58259518]
[1735097219147,0.55,3482.1,3481.3,2.87247]
[1735097219448,0.7743,3482.0,3481.6,2.8722]
[1735097222352,0.7743,3482.0,3481.2,2.87257]
[1735097222659,0.55,3482.6,3481.9,2.87199]
[1735097223158,0.55,3482.6,3482.1,2.87182]
[1735097224159,0.7743,3482.7,3482.0,0.7802]
[1735097224511,1.20187634,3483.2,3483.0,2.87108]
[1735097224512,0.7743,3483.1,3483.0,2.87108]
[1735097227304,0.775,3484.0,3483.0,0.287108]
[1735097227503,0.775,3484.0,3483.5,2.8706]
[1735097228467,1.97687634,3484.0,3483.7,2.87047]
[1735097229203,1.97687634,3484.0,3483.8,2.87042]
[1735097229711,1.97687634,3484.0,3483.5,2.87061]
[1735097230052,0.775,3484.0,3483.5,2.87061]
[1735097231687,0.775,3484.0,3483.6,2.87058]
[1735097233039,0.775,3484.0,3483.7,2.87049]
[1735097233194,0.775,3484.0,3483.3,0.81]
[1735097233539,0.775,3484.6,3483.3,0.81]
[1735097233840,0.775,3484.6,3484.1,2.87013]
[1735097234143,0.775,3484.6,3484.2,2.87008]
[1735097235085,0.775,3484.6,3484.0,2.87025]
[1735097235532,0.775,3484.6,3484.1,2.87014]
[1735097236018,0.775,3484.6,3484.2,2.87007]
[1735097236537,0.775,3484.6,3484.3,2.86999]
[1735097237041,3.1711806,3485.1,3483.5,2.87067]
[1735097237042,0.55,3484.5,3483.5,2.87067]
[1735097237252,0.55,3484.1,3483.5,2.87067]
[1735097237543,0.55,3484.1,3483.4,2.8707]
[1735097237834,0.55,3484.1,3483.4,0.43511106]
[1735097238133,0.55,3484.1,3483.4,0.02870556]
[1735097238605,0.775,3484.2,3483.3,0.02870389]
[1735097238937,1.20187634,3484.8,3483.6,0.81]
[1735097239239,1.20187634,3484.8,3484.1,2.8701]
[1735097239592,1.20187634,3484.8,3483.6,0.81]
[1735097239792,1.20187634,3484.8,3484.2,2.87006]
[1735097240532,1.80319992,3484.9,3484.2,2.87006]
[1735097240533,0.55,3484.9,3484.2,2.87006]
[1735097241116,0.775,3484.8,3484.2,2.87006]
[1735097243110,0.775,3484.8,3483.7,3.238517]
[1735097243111,0.775,3484.8,3484.0,2.87024]
[1735097243458,0.775,3484.8,3484.1,2.87017]
[1735097245169,0.775,3484.8,3483.8,2.87035]
[1735097245170,0.822,3484.6,3483.8,2.87035]
[1735097245320,0.822,3484.4,3483.8,2.87035]
[1735097245958,0.822,3484.4,3483.2,0.8072]
[1735097246278,0.822,3484.4,3483.6,2.87056]
[1735097246578,0.822,3484.4,3483.2,0.8072]
[1735097246777,0.822,3484.4,3483.7,2.87043]
[1735097248369,0.822,3484.4,3483.3,3.8207916]
[1735097248370,0.55,3484.3,3483.3,0.38072]
[1735097248577,0.55,3484.1,3483.5,2.87067]
[1735097250479,0.55,3484.1,3483.7,2.87048]
[1735097250928,0.55,3484.1,3483.5,2.87066]
[1735097251128,0.55,3484.1,3482.9,0.8072]
[1735097251129,0.822,3483.8,3482.6,2.87141]
[1735097251472,0.55,3483.7,3483.2,2.8709]
[1735097251640,0.822,3483.6,3483.2,2.8709]
[1735097253541,0.822,3483.6,3482.8,2.87125]
[1735097253871,0.822,3483.6,3482.7,0.4871965]
[1735097253872,0.822,3483.6,3483.3,2.87082]
[1735097254174,4.20187634,3484.5,3483.8,2.87042]
[1735097254175,0.822,3483.9,3483.8,2.87042]
[1735097255404,0.822,3483.9,3483.1,0.8072]
[1735097255555,0.822,3483.9,3483.2,0.38072]
[1735097256658,0.822,3483.9,3483.7,2.87047]
[1735097257189,0.822,3483.9,3482.9,3.0]
[1735097257190,0.822,3483.9,3483.4,2.87074]
[1735097259405,0.822,3483.9,3483.2,2.8709]
[1735097260007,3.0,3484.2,3483.2,2.8709]
[1735097260008,0.55,3483.8,3483.2,2.8709]
[1735097260311,0.7514,3483.7,3483.0,2.87108]
[1735097260474,0.55,3483.6,3483.0,2.87108]
[1735097261108,0.55,3483.6,3483.1,2.87099]
[1735097261270,0.55,3483.6,3483.2,2.87091]
[1735097263301,0.55,3483.6,3482.7,3.3584765]
[1735097263507,0.55,3483.6,3483.0,2.87102]
[1735097263911,0.55,3483.6,3483.1,2.87098]
[1735097264562,0.55,3483.6,3483.3,2.87083]
[1735097264963,0.55,3483.6,3482.8,3.3456392]
[1735097265179,0.55,3483.6,3483.1,2.87099]
[1735097265508,0.55,3483.7,3482.9,2.87116]
[1735097265667,0.7514,3483.6,3482.9,2.87116]
[1735097266227,0.55,3483.5,3482.9,2.87116]
[1735097267542,0.55,3483.5,3482.7,0.4871965]
[1735097267715,0.55,3483.5,3483.0,2.87102]
[1735097270212,0.55,3483.5,3482.8,3.28808065]
[1735097270420,0.55,3483.5,3482.9,2.87113]
[1735097271944,0.55,3483.5,3482.7,0.4871965]
[1735097271945,0.55,3483.5,3483.0,2.87107]
[1735097273144,0.55,3483.5,3482.7,0.4871965]
[1735097273346,0.55,3483.5,3483.1,2.87094]
[1735097274046,0.7514,3483.6,3483.2,2.87085]
[1735097275645,1.20187634,3483.8,3482.6,2.87141]
[1735097275814,0.55,3483.7,3483.4,2.87074]
[1735097276436,0.55,3483.8,3483.2,2.8709]
[1735097277005,0.777,3483.5,3482.9,2.87113]
[1735097277508,0.55,3483.4,3482.9,2.87113]
[1735097277941,0.777,3483.5,3482.5,1.98596523]
[1735097278156,0.777,3483.5,3483.1,2.87095]
[1735097279160,0.777,3483.5,3483.2,2.87085]
[1735097280662,1.97887634,3483.9,3483.4,2.87075]
[1735097280965,0.55,3483.4,3482.2,10.77725504]
[1735097281112,0.777,3483.1,3482.3,2.87161]
[1735097281451,0.55,3483.0,3482.3,4.64855595]
[1735097281650,0.55,3483.0,3482.3,1.77694595]
[1735097281804,0.55,3483.0,3482.4,2.87156]
[1735097282006,0.777,3483.1,3482.9,2.87115]
[1735097282235,1.327,3483.9,3483.1,2.87097]
[1735097282407,0.55,3483.7,3483.1,2.87097]
[1735097282606,1.20187634,3483.4,3483.1,2.87097]
[1735097283036,1.20187634,3483.4,3482.6,2.87136]
[1735097283255,1.20187634,3483.4,3482.9,2.87116]
[1735097283958,0.55,3483.8,3482.6,2.87136]
[1735097284108,0.55,3483.8,3483.0,2.87107]
[1735097284314,1.54379951,3483.8,3483.0,2.87107]
[1735097285522,4.06263883,3483.6,3482.3,0.58359091]
[1735097285729,0.777,3483.5,3482.5,2.87141]
[1735097285929,0.55,3483.4,3482.5,2.87141]
[1735097286144,0.55,3483.4,3482.3,0.58359091]
[1735097286360,0.55,3483.4,3482.4,1.018358]
[1735097286518,0.55,3483.4,3482.9,2.87113]
[1735097287257,0.55,3483.2,3482.4,3.889908]
[1735097287464,0.55,3483.0,3482.4,2.87155]
[1735097287627,0.55,3483.0,3482.4,2.8715]
[1735097287827,0.55,3483.0,3482.4,3.62639498]
[1735097288360,0.55,3483.0,3482.4,0.75489498]
[1735097288520,0.55,3483.0,3482.5,2.87147]
[1735097289219,0.7518,3483.1,3482.4,0.75489498]
[1735097289421,0.7518,3483.1,3482.6,2.87141]
[1735097293254,0.55,3483.0,3482.3,2.87161]
[1735097293455,0.7518,3483.1,3482.0,3.58136961]
[1735097293808,0.7518,3483.1,3482.6,2.8714]
[1735097296170,0.55,3483.0,3482.4,2.87155]
[1735097299226,0.55,3483.0,3482.5,2.87149]
[1735097299721,0.7518,3483.1,3482.8,2.87124]
[1735097299900,0.7518,3483.1,3482.6,3.158539]
[1735097301537,0.7518,3483.1,3482.6,2.87139]
[1735097304426,0.7518,3483.1,3482.4,2.87155]
[1735097304584,0.7518,3483.1,3482.4,2.87152]
[1735097306793,0.99033934,3483.0,3482.4,2.87152]
[1735097308154,0.99033934,3483.0,3482.6,2.87141]
[1735097309361,0.7518,3483.1,3482.6,2.87141]
[1735097311068,0.7518,3483.1,3482.4,2.87157]
[1735097311357,0.7518,3483.1,3482.2,1.19335504]
[1735097311358,0.55,3483.0,3482.2,4.06509504]
[1735097311965,1.12748763,3483.1,3482.2,1.19335504]
[1735097311966,0.55,3482.6,3482.2,1.19335504]
[1735097312255,0.55,3482.4,3482.2,1.19335504]
[1735097312638,0.8063,3482.3,3482.2,1.19335504]
[1735097312851,1.77908,3482.3,3482.2,1.19335504]
[1735097313031,0.97278,3482.3,3482.2,1.19335504]
[1735097313233,1.77908,3482.3,3482.2,1.19335504]
[1735097313433,1.77908,3482.3,3481.4,5.34615301]
[1735097313434,0.55,3482.2,3481.4,5.34615301]
[1735097313848,0.55,3482.2,3481.5,2.87228]
[1735097314016,0.55,3482.2,3481.5,3.70331421]
[1735097315558,0.8063,3482.1,3481.2,2.87252]
[1735097315747,0.8063,3481.9,3481.0,4.06600504]
[1735097315949,0.55,3481.8,3481.0,4.06600504]
[1735097316633,0.55,3481.8,3481.0,2.87265]
[1735097317564,0.55,3481.8,3480.8,4.06622504]
[1735097317719,0.812,3481.6,3480.8,1.19335504]
[1735097317919,0.812,3481.4,3480.8,1.19335504]
[1735097318161,0.55,3481.3,3480.6,2.87306]
[1735097318787,0.55,3481.3,3480.7,2.87298]
[1735097319272,0.55,3481.3,3480.8,2.87288]
[1735097319431,0.812,3481.4,3481.0,2.87266]
[1735097320437,0.812,3481.4,3480.6,2.87306]
[1735097320966,0.55,3481.3,3480.5,2.87315]
[1735097321169,0.55,3481.3,3480.4,3.7957]
[1735097321317,0.55,3481.3,3480.6,2.87299]
[1735097321519,0.55,3481.3,3480.6,0.02872761]
[1735097321770,0.812,3481.4,3480.5,0.72386991]
[1735097321978,0.812,3481.4,3481.0,2.87273]
[1735097322321,0.812,3481.4,3481.1,2.87262]
[1735097322813,1.362,3481.9,3481.3,2.87249]
[1735097326281,0.812,3481.8,3480.8,2.87285]
[1735097326422,0.55,3481.7,3480.8,2.87285]
[1735097326625,0.55,3481.5,3480.8,2.87282]
[1735097328085,0.55,3481.5,3480.5,1.51956991]
[1735097328378,0.55,3481.5,3480.9,2.8728]
[1735097331125,0.812,3481.6,3480.6,0.7835719]